Cogmind - Beta 10.2 --- EXPLORER MODE // 2021.03.11 @ 20:55:44 Player: Analote Result: Self-destructed Performance ------------- Evolutions (3) 1500 Regions Visited (4) 800 Robots Destroyed (36) 180 Value Destroyed (1209) 1209 Prototype IDs (2) 40 Alien Tech Used (0) 0 Bonus (77) 77 TOTAL SCORE: 3806 Bonus ------- High Alert Combat Kills 77 Cogmind --------- Core Integrity 649/700 Matter 270/300 Energy 175/175 System Corruption 0% Temperature Cool (9) Movement Flying (117) Ox1 Location -7/Factory Parts ------- > --- POWER (3) -------- Light Ion Engine Micro Nuclear Core > --- PROPULSION (6) --- Flight Unit Xenon Bombardment Thruster > --- UTILITY (3) ------ Improved Cooling System Transmission Jammer Power Shielding > --- WEAPON (2) ------- Light Assault Rifle > --- INVENTORY (4) ---- Heat Sink Improved Heat Sink Scythe Peak State ------------ > --- POWER ------------ Light Ion Engine Enhanced Nuclear Core Micro Nuclear Core > --- PROPULSION ------- Flight Unit Flight Unit Xenon Bombardment Thruster > --- UTILITY ---------- Improved Cooling System Transmission Jammer Power Shielding > --- WEAPON ----------- Light Assault Rifle Light Assault Rifle > --- INVENTORY -------- Heat Sink Improved Heat Sink Scythe [Rating: 26] Favorites ----------- Power Light Ion Engine Engine Light Ion Engine Power Core Light Nuclear Core Propulsion Flight Unit Leg Aluminum Leg Flight Unit Flight Unit Utility Improved Heat Sink Device Improved Heat Sink Protection Power Shielding Weapon Light Assault Rifle Energy Gun EM Pulse Gun Energy Cannon Heavy Particle Cannon Ballistic Gun Light Assault Rifle Ballistic Cannon Flak Cannon Slashing Weapon Scythe Build | -11 -10 -9 -8 -7 ------- Run | Scr Mat Mat Mat Fac Slots Evolved 7 | . 1 2 2 2 Power 2 | . 1 . 1 . Propulsion 4 | . . 2 . 2 Utility 1 | . . . 1 . Weapon . | . . . . . Parts Attached 51 | 5 10 3 28 5 Power 15 | 1 3 . 8 3 Engine 9 | 1 3 . 4 1 Core 6 | . . . 4 2 Reactor . | . . . . . Propulsion 12 | . 3 1 7 1 Treads . | . . . . . Leg 1 | . 1 . . . Wheel . | . . . . . Hover . | . . . . . Flight 11 | . 2 1 7 1 Utility 12 | 2 2 1 6 1 Device 9 | 1 1 1 5 1 Storage . | . . . . . Processor . | . . . . . Hackware . | . . . . . Protection 3 | 1 1 . 1 . Artifact . | . . . . . Weapon 12 | 2 2 1 7 . Energy Gun 4 | 2 1 1 . . Energy Cannon 2 | . . . 2 . Ballistic Gun 4 | . 1 . 3 . Ballistic Cannon 1 | . . . 1 . Launcher . | . . . . . Special Weapon . | . . . . . Impact Weapon . | . . . . . Slashing Weapon 1 | . . . 1 . Piercing Weapon . | . . . . . Special Melee Weapon . | . . . . . Unidentified Prototypes 2 | . . . . 2 Parts Lost 18 | . . . 16 2 Power 4 | . . . 4 . Propulsion 8 | . . . 7 1 Utility 3 | . . . 3 . Weapon 3 | . . . 2 1 Highest Loss Streak 9 | . . . 9 1 Average Slot Usage (%) 74 | . 86 87 67 66 Engine 14 | . 25 20 11 7 Core 3 | . . . 5 7 Leg 1 | . 5 . . . Flight 16 | . 11 30 16 16 Device 16 | . 12 18 17 14 Protection 6 | . 11 1 5 7 Energy Gun 5 | . 15 7 1 . Ballistic Gun 5 | . 4 10 3 14 Slashing Weapon 2 | . . . 4 . Naked Turns . | . . . . . Heaviest Build 17 | 11 16 11 17 15 Greatest Support 15 | 3 10 12 14 15 Greatest Overweight (x) 5 | 3 5 . 3 1 Average Overweight (x) . | 1 1 . . . Largest Inventory Capacity 4 | 4 4 4 4 4 Average Capacity 4 | 4 4 4 4 4 Most Carried 4 | 3 4 2 4 4 Average Carried 1 | 1 1 1 2 2 Final Capacity 4 | 4 4 4 4 4 Final Carried 3 | 1 2 2 2 3 Class Distribution -------------------- 63% | Hacker-Mutant 36% | Scavenger-Mutant Dominant Class ---------------- Hacker-Mutant | -10/Materials Scavenger-Mutant | -9/Materials Hacker-Mutant | -8/Materials Hacker-Mutant | -7/Factory Resources | -11 -10 -9 -8 -7 ----------- Run | Scr Mat Mat Mat Fac Matter Collected 746 | 55 271 67 279 74 Remotely . | . . . . . Salvage Created 1438 | . 274 143 911 110 Parts 85 | . 20 9 50 6 Haulers Intercepted . | . . . . . Recyclers Shooed . | . . . . . Parts Field Recycled . | . . . . . Retrieved Matter . | . . . . . Parts Self-Destructed . | . . . . . Prevented . | . . . . . Kills | -11 -10 -9 -8 -7 ------- Run | Scr Mat Mat Mat Fac Combat Hostiles Destroyed 32 | . 8 3 20 1 Melee 11 | . . . 11 . Guns 16 | . 8 3 4 1 Cannons 5 | . . . 5 . Classes Destroyed 7 | . 3 1 3 . Worker 1 | . . . 1 . Watcher 3 | . 1 . 1 1 Swarmer 8 | . 4 . 4 . Grunt 12 | . 4 2 6 . Brawler 1 | . . . 1 . Sentry 10 | . . 1 8 1 Hunter 1 | . . . 1 . Best Kill Streak 4 | . 4 2 3 1 Combat Bots Only 4 | . 4 2 3 1 Max Kills in Single Turn 1 | . 1 1 1 1 Gunslinging . | . . . . . Exploded . | . . . . . Melee 1 | . . . 1 . Uniques/NPCs Destroyed . | . . . . . Combat | -11 -10 -9 -8 -7 -------- Run | Scr Mat Mat Mat Fac Damage Taken 1401 | . 119 51 904 327 Core 286 | . 19 6 210 51 Absorbed by Shields . | . . . . . Core Remaining (%) 87 | 100 92 98 61 . Volleys Fired 97 | . 37 6 37 17 Largest 2 | . 2 2 2 2 Hottest 90 | . 90 60 75 40 Shots Fired 164 | . 56 12 62 34 Gun 152 | . 56 12 50 34 Cannon 12 | . . . 12 . Launcher . | . . . . . Special . | . . . . . Kinetic 104 | . 17 6 47 34 Thermal 20 | . 19 . 1 . Explosive . | . . . . . Electromagnetic 40 | . 20 6 14 . Robot Hit Streak 34 | . 21 8 34 24 Robot Miss Streak 2 | . 2 1 1 1 Penetration Max . | . . . . . Secondary Targets 2 | . 1 . 1 . Max Gunslinging Chain 1 | . 1 . 1 . Shots Hit Robots 170 | . 43 8 89 30 Core Hits 82 | . 16 6 49 11 Critical Hits . | . . . . . Critical Kills . | . . . . . Critical Parts Destroyed . | . . . . . Melee Attacks 34 | . . . 34 . Impact . | . . . . . Slashing 34 | . . . 34 . Piercing . | . . . . . Sneak Attacks 2 | . . . 2 . Combat Hostiles . | . . . . . Follow-up Attacks . | . . . . . Damage Inflicted 2529 | . 439 85 1778 227 Guns 1152 | . 438 85 402 227 Cannons 218 | . . . 218 . Explosions 40 | . . . 40 . Melee 1118 | . . . 1118 . Ramming 1 | . 1 . . . Kinetic 762 | . 98 13 424 227 Thermal 215 | . 150 . 65 . Explosive . | . . . . . Electromagnetic 433 | . 190 72 171 . Impact . | . . . . . Slashing 1118 | . . . 1118 . Piercing . | . . . . . Highest Corruption . | . . . . . Average Corruption . | . . . . . Corruption Purged . | . . . . . Overload Shots . | . . . . . Overflow Damage 93 | . . . 93 . Projectiles . | . . . . . Explosions . | . . . . . Melee 93 | . . . 93 . Knockbacks 5 | . . . 5 . Impact . | . . . . . Kinetic 5 | . . . 5 . Secondary . | . . . . . Self-Inflicted Damage 22 | . . . 22 . Shots 1 | . . . 1 . Rammed 2 | . 2 . . . Targets Rammed 2 | . 2 . . . Kicked . | . . . . . Crushed . | . . . . . Highest Temperature 369 | . 369 8 13 1 Average Temperature 108 | . 141 3 7 1 Received Heat Transfer 729 | . 84 39 405 201 Effects 1 | . 1 . . . Shutdowns 1 | . 1 . . . Siege Activations . | . . . . . Robots Corrupted . | . . . . . Combat Hostiles . | . . . . . Parts Fried . | . . . . . Impact Corruptions . | . . . . . Robots Melted . | . . . . . Combat Hostiles . | . . . . . Parts Melted . | . . . . . Heat Transferred 531 | . 444 . 87 . Parts Sabotaged . | . . . . . Parts Stolen . | . . . . . Parts Stripped . | . . . . . Power Chain Reactions 1 | . . . 1 . Missiles Intercepted . | . . . . . Alert | -11 -10 -9 -8 -7 ------- Run | Scr Mat Mat Mat Fac Peak Influence 528 | . 224 126 528 206 Initial 104 | . . 1 37 104 Average 207 | . 108 41 306 142 Maximum Alert Level 2 | . 1 . 2 1 Low Security (%) 47 | 100 61 100 18 93 Level 1 36 | . 38 . 51 6 Level 2 16 | . . . 30 . Level 3 . | . . . . . Level 4 . | . . . . . Level 5 . | . . . . . High Security . | . . . . . Max Security . | . . . . . Squads Dispatched 3 | . . 1 2 . Investigation . | . . . . . Extermination . | . . . . . Reinforcement 3 | . . 1 2 . Assault . | . . . . . Garrison . | . . . . . Intercept . | . . . . . Construction Impeded . | . . . . . Haulers Reinforced . | . . . . . Stealth | -11 -10 -9 -8 -7 --------- Run | Scr Mat Mat Mat Fac Distress Signals 6 | . . . 6 . Communications Jammed . | . . . . . Distress Signals . | . . . . . Times Spotted 67 | . 13 4 45 5 Peak Tracking Total 6 | . 3 2 6 3 Tactical Retreats 8 | . . . 8 . Traps | -11 -10 -9 -8 -7 ------- Run | Scr Mat Mat Mat Fac Traps Triggered 4 | . 1 . 3 . Indirectly . | . . . . . Trap Hack Attempts . | . . . . . Triggered . | . . . . . Disarmed . | . . . . . Reprogrammed . | . . . . . Reused . | . . . . . Traps Extracted . | . . . . . Installed . | . . . . . Triggered . | . . . . . Machines | -11 -10 -9 -8 -7 ---------- Run | Scr Mat Mat Mat Fac Machines Disabled 1 | . 1 . . . Max in Single Turn 1 | . 1 . . . Garrison Access 1 | . . . . 1 Machines Sabotaged . | . . . . . Garrisons Compromised . | . . . . . Overloaded Fab Kills . | . . . . . Fab Network Shutdowns . | . . . . . Hacking | -11 -10 -9 -8 -7 --------- Run | Scr Mat Mat Mat Fac Machines Accessed 1 | . . . . 1 Terminals . | . . . . . Fabricators . | . . . . . Repair Stations . | . . . . . Recycling Units . | . . . . . Scanalyzers . | . . . . . Garrison Access 1 | . . . . 1 Total Hacks 2 | . . . . 2 Successful 1 | . . . . 1 Failed 1 | . . . . 1 Catastrophic . | . . . . . Database Lockouts . | . . . . . Manual . | . . . . . Terminals . | . . . . . Fabricators . | . . . . . Repair Stations . | . . . . . Recycling Units . | . . . . . Scanalyzers . | . . . . . Garrison Access 2 | . . . . 2 Terminal Hacks . | . . . . . Fabricator Hacks . | . . . . . Repair Station Hacks . | . . . . . Recycling Unit Hacks . | . . . . . Scanalyzer . | . . . . . Garrison Access Hacks 1 | . . . . 1 Seal Access 1 | . . . . 1 Unauthorized Hacks . | . . . . . Terminals . | . . . . . Fabricators . | . . . . . Repair Stations . | . . . . . Recycling Units . | . . . . . Scanalyzers . | . . . . . Garrison Access . | . . . . . Data Cores Recovered . | . . . . . Used . | . . . . . Hacking Detections . | . . . . . Full Trace Events . | . . . . . Feedback Events . | . . . . . Feedback Blocked . | . . . . . Robot Schematics Acquired . | . . . . . Robots Built . | . . . . . Matter . | . . . . . Time . | . . . . . Total Robot Build Rating . | . . . . . Part Schematics Acquired . | . . . . . Parts Built . | . . . . . Matter . | . . . . . Time . | . . . . . Total Part Build Rating . | . . . . . Parts Repaired . | . . . . . Time . | . . . . . Parts Recycled . | . . . . . Recycled Matter . | . . . . . Retrieved Matter . | . . . . . Retrieved Components . | . . . . . Parts Scanalyzed . | . . . . . Part Schematics Acquired . | . . . . . Parts Damaged . | . . . . . Bothacking | -11 -10 -9 -8 -7 ------------ Run | Scr Mat Mat Mat Fac Used RIF Installer . | . . . . . Robots Hacked . | . . . . . Non-combat . | . . . . . Combat . | . . . . . Robot Hacks Applied . | . . . . . Relay Couplers Released . | . . . . . Robots Rewired . | . . . . . Allies Hacked . | . . . . . Hacks Repelled . | . . . . . Allies | -11 -10 -9 -8 -7 -------- Run | Scr Mat Mat Mat Fac Total Allies . | . . . . . Largest Group . | . . . . . Highest-Rated Group . | . . . . . Highest-Rated Ally . | . . . . . Total Orders . | . . . . . Ally Attacks . | . . . . . Total Damage . | . . . . . Kills . | . . . . . Allies Corrupted . | . . . . . Allies Melted . | . . . . . Intel | -11 -10 -9 -8 -7 ------- Run | Scr Mat Mat Mat Fac Robot Analysis Total . | . . . . . Derelict Logs Recovered . | . . . . . Drone Launches . | . . . . . Drone Recoveries . | . . . . . Exploration | -11 -10 -9 -8 -7 ------------- Run | Scr Mat Mat Mat Fac Turns Passed 1975 | 56 444 202 1042 231 Spaces Moved 1552 | 33 220 350 727 222 Core 45 | 33 12 . . . Treads . | . . . . . Legs 87 | . 87 . . . Wheels . | . . . . . Hover . | . . . . . Flight 1420 | . 121 350 727 222 Fastest Speed 34 | 50 37 34 34 34 Average Speed 84 | 140 138 34 92 74 Slowest Speed 300 | 200 300 34 280 117 Overloaded Moves . | . . . . . Propulsion Burnouts . | . . . . . Robots Hopped 7 | . . 6 1 . Cave-ins Triggered . | . . . . . Exploration Rate (%) 31 | 3 54 32 60 6 Regions Visited 4 Branch Regions . Pre-discovered Areas . | . . . . . Known Exits Taken 4 | 1 1 1 1 . Unknown Exits Taken . | . . . . . Scrap Searched . | . . . . . Spaces Dug . | . . . . . Terrain Destroyed 7 | . . . 7 . Melee . | . . . . . Projectile . | . . . . . AOE 7 | . . . 7 . Terrain Rammed . | . . . . . Walls Destroyed . | . . . . . Machines Disabled . | . . . . . Actions | -11 -10 -9 -8 -7 --------- Run | Scr Mat Mat Mat Fac Total 2019 | 43 309 415 991 261 Wait 225 | . 18 61 137 9 Move 1534 | 32 219 337 724 222 Hop 7 | . . 6 1 . Pick Up 52 | 6 14 2 25 5 Fast Attach . | . . . . . Attach 42 | 5 6 2 25 4 Detach 1 | . . . 1 . Swap 9 | . 4 1 3 1 Drop 16 | . 9 . 4 3 Fire 97 | . 37 6 37 17 Melee 34 | . . . 34 . Ram 2 | . 2 . . . Kick . | . . . . . Crush . | . . . . . Escape Stasis . | . . . . . Rewire . | . . . . . Trap . | . . . . . Miscellaneous . | . . . . . Route ------- -11/Scrapyard -10/Materials (discovered 2 exits: *Mat / *Min) -9/Materials (discovered 2 exits: *Mat / *Min) -8/Materials -7/Factory History --------- Turn | Location | Event 2 | -11/Scrapyard | Identified exit to Materials 2 | -11/Scrapyard | Discovered exit to Materials (range 16) 57 | -11/Scrapyard | Entered Materials 57 | -10/Materials | Evolved 1 slot: Power x1 293 | -10/Materials | Identified exit to Mines 293 | -10/Materials | Discovered exit to Mines (range 11) 306 | -10/Materials | Build established: Hacker-Mutant 480 | -10/Materials | Identified exit to Materials 480 | -10/Materials | Discovered exit to Materials (range 15) 501 | -10/Materials | Entered another Materials area 501 | -9/Materials | Evolved 2 slots: Propulsion x2 527 | -9/Materials | Identified exit to Mines 527 | -9/Materials | Discovered exit to Mines (range 14) 612 | -9/Materials | Build established: Scavenger-Mutant 650 | -9/Materials | Identified exit to Materials 650 | -9/Materials | Discovered exit to Materials (range 11) 703 | -9/Materials | Entered another Materials area 703 | -8/Materials | Evolved 2 slots: Power x1, Utility x1 964 | -8/Materials | Lost 3 parts (1p2n) 1229 | -8/Materials | Build established: Hacker-Mutant 1650 | -8/Materials | Lost 9 parts (3p3n2u1w) 1687 | -8/Materials | Identified exit to Factory 1687 | -8/Materials | Discovered exit to Factory (range 15) 1745 | -8/Materials | Entered Factory 1745 | -7/Factory | Evolved 2 slots: Propulsion x2 1976 | -7/Factory | Self-destructed Last Messages --------------- 01751_ Dropped Lgt. Nuclear Core. 01754_ Acquired Mic. Nuclear Core. 01814_ Acquired Xenon Bombardment Thruster. 01822_ W-25 Informer destroyed. 01832_ Acquired Imp. Cooling System. 01852_ Acquired Prototype Power Core. 01853_ Identified Enh. Nuclear Core. 01854_ Dropped Enh. Nuclear Core. 01885_ Flight Unit destroyed. 01893_ Y-54 Guardian destroyed. 01897_ Acquired 74 matter. 01933_ K-01 Serf collects debris. 01936_ K-01 Serf cleans the Neutrino Reactor. 01941_ Connecting with Garrison Access... >>Seal Access door sealed. 01946_ Acquired Prototype Engine. 01947_ Identified Hvy. Deuterium Engine. 01948_ Dropped Hvy. Deuterium Engine. 01976_ Lgt. Assault Rifle destroyed. Map ----- +----------------------------------------------------+ | | | | | | | | | | | | | | | | | | | | | | | | | | | ?????????????????????????????????????????????????? | | ?????????????????????????????????????###########?? | | ?????????????????????????????????????# """T""" #?? | | ???????????????????????????????####### """ """ ### | | ???????????????????????????????# # # ! | | ?????????????????????????####### # # | | ????????????????????????# + !!!# | | ????????????????????????# ###### # =!!# | | ????????????????????????# #????# # =! # " | | ????????????????????????# #????### ### + " | | ????????????????????????# ########+############# " | | ????????????????????????# ## #??????????# " | | ????????????????????????#@ Y """ #??????????# " | | ????????????????????????# ## """ #??????????# " | | ????????????????????????#g## """ #??????????# | | ???????????????????????? # #??????????# | | ???????????????????????# + "" *#??????????# ! | | ???????????????????????#] # "G #??????????### | | ????????????????????????# ## "" #????????????# | | ????????????????????????# ## #????????????? | | ????????????????????????# ###########????????????? | | ????????????????????????? ???????????????????????? | | ????????????????????????? ???????????????????????? | | ????????????????????????? ???????????????????????? | | ????????????????????????? ???????????????????????? | | ????????????????????????? ???????????????????????? | | ????????????????????????? ???????????????????????? | | ????????????????????????? ???????????????????????? | | ?????????????????????????????????????????????????? | | ?????????????????????????????????????????????????? | | ?????????????????????????????????????????????????? | | ?????????????????????????????????????????????????? | | ?????????????????????????????????????????????????? | | ?????????????????????????????????????????????????? | | ?????????????????????????????????????????????????? | | ?????????????????????????????????????????????????? | | ?????????????????????????????????????????????????? | +----------------------------------------------------+ Best States ------------- Heat Dissipation 61 Energy Generation 24 Energy Capacity 400 Matter Stores 300 Matter Capacity 300 Sight Range 16 Robot Scan Range 13 Terrain Scan Range 14 Terrain Scan Density 10 ECM Strength 1 Jamming Range 8 Resistance: KI 35 Resistance: TH 35 Resistance: EX 35 Resistance: EM 35 Resistance: I 35 Resistance: S 35 Resistance: P 35 Power Shielding 33 Evasion (%) 63 Offensive Hacking 20 Item Schematics ----------------- None Robot Schematics ------------------ None Fabricated ------------ Nothing Alien Tech Used ----------------- None Achievements -------------- None Challenges ------------ None Game ------ Seed HardenedScanPerforator Manual? 0 Play Time 00:18:02 Cumulative 32.0 hours Start 2021.03.07 @ 22:40:34 End 2021.03.11 @ 20:55:44 Sessions 3 Manual Loads 0 Difficulty Explorer Special Mode None Game No. 42 Rogue 0 Adventurer 0 Explorer 42 Win Type - Total 0 Types 0/0/0/0/0/0/0/0/0 Lore% 32 Gallery% 45 Achievement% 37 Wizard Run 0 Options --------- ASCII 0 Keyboard 0 Movement Mouse Keybinds 0 Fullscreen 2 Font 12/Proggy Map View 83x54 Tactical HUD 1 Map Filters NONE Filters NONE Steam 1 RUN: 36cdfeff-266e-4c01-a7d8-a05557ab3674